Department Family,Entity,Date Paid,Expense Type,Expenses Area,Supplier Name,Transaction Reference,Total,VAT Registration Number
Department of Health,Imperial College Healthcare NHS Trust,01/02/2018,Agency Nursing: Qualified,Div Of Med & Integrated Care,Reed,3707768,"84,614.63",Optional requirement only
Department of Health,Imperial College Healthcare NHS Trust,01/02/2018,Agency Nursing: Qualified,"Div Of Surg, Cardiov & Cancer",Reed,3707768,"83,062.74",Optional requirement only
Department of Health,Imperial College Healthcare NHS Trust,01/02/2018,Agency Nursing: Qualified,Div Of Women & Clin Support,Reed,3707768,"40,119.75",Optional requirement only
Department of Health,Imperial College Healthcare NHS Trust,01/02/2018,Agency Scient & Prof Qualified,"Div Of Surg, Cardiov & Cancer",Reed,3707766,"31,570.97",Optional requirement only
Department of Health,Imperial College Healthcare NHS Trust,01/02/2018,Agency Scient & Prof Qualified,Pathology,Reed,4948,"44,834.00",Optional requirement only
Department of Health,Imperial College Healthcare NHS Trust,01/02/2018,Buildings-Additions-Purchased,Capital Summary,Amber Group Limited,3701143,"59,995.48",Optional requirement only
Department of Health,Imperial College Healthcare NHS Trust,01/02/2018,Buildings-Additions-Purchased,Capital Summary,Amber Group Limited,3706942,"106,090.96",Optional requirement only
Department of Health,Imperial College Healthcare NHS Trust,01/02/2018,Cleaning Materials,Nursing Directorate,Synergy Health Managed Services Ltd,3708236,"43,080.95",Optional requirement only
Department of Health,Imperial College Healthcare NHS Trust,01/02/2018,Cx-Hh Consultant Load,Ichnt Balance Sheet,Dr Andrew Wright,3707653,"48,748.40",Optional requirement only
Department of Health,Imperial College Healthcare NHS Trust,01/02/2018,Dialysers,Div Of Med & Integrated Care,Baxter Healthcare Ltd,3709022,"93,097.37",Optional requirement only
Department of Health,Imperial College Healthcare NHS Trust,01/02/2018,Dist Award - Local Cea,Div Of Med & Integrated Care,Imperial College London,3708040,"38,105.78",Optional requirement only
Department of Health,Imperial College Healthcare NHS Trust,01/02/2018,Dist Award - Local Cea,"Div Of Surg, Cardiov & Cancer",Imperial College London,3708041,"25,463.07",Optional requirement only
Department of Health,Imperial College Healthcare NHS Trust,01/02/2018,Dist Award - Nat Cea,Div Of Med & Integrated Care,Imperial College London,3708040,"82,738.24",Optional requirement only
Department of Health,Imperial College Healthcare NHS Trust,01/02/2018,Dist Award - Nat Cea,"Div Of Surg, Cardiov & Cancer",Imperial College London,3708040,"74,654.69",Optional requirement only
Department of Health,Imperial College Healthcare NHS Trust,01/02/2018,Dist Award - Nat Cea,Div Of Women & Clin Support,Imperial College London,3708040,"44,428.55",Optional requirement only
Department of Health,Imperial College Healthcare NHS Trust,01/02/2018,Dist Award - Nat Cea,Medical Director Summary,Imperial College London,3708040,"28,498.15",Optional requirement only
Department of Health,Imperial College Healthcare NHS Trust,01/02/2018,Ext Contr Laundry,Nursing Directorate,Synergy Health Managed Services Ltd,3708237,"45,297.39",Optional requirement only
Department of Health,Imperial College Healthcare NHS Trust,01/02/2018,Ext Contr Laundry,Nursing Directorate,Synergy Health Managed Services Ltd,3708238,"48,837.99",Optional requirement only
Department of Health,Imperial College Healthcare NHS Trust,01/02/2018,Ext Contr Laundry,Nursing Directorate,Synergy Health Managed Services Ltd,3708239,"50,805.64",Optional requirement only
Department of Health,Imperial College Healthcare NHS Trust,01/02/2018,Home Electronics Cr,Ichnt Balance Sheet,Northumbria Healthcare Nhs Foundation Trust,3707792,"72,685.21",Optional requirement only
Department of Health,Imperial College Healthcare NHS Trust,01/02/2018,Ic Pay Recharge In: Med,Div Of Med & Integrated Care,Imperial College London,3708040,"183,586.85",Optional requirement only
Department of Health,Imperial College Healthcare NHS Trust,01/02/2018,Ic Pay Recharge In: Med,"Div Of Surg, Cardiov & Cancer",Imperial College London,3708040,"318,018.91",Optional requirement only
Department of Health,Imperial College Healthcare NHS Trust,01/02/2018,Ic Pay Recharge In: Med,"Div Of Surg, Cardiov & Cancer",Imperial College London,3708041,"33,802.17",Optional requirement only
Department of Health,Imperial College Healthcare NHS Trust,01/02/2018,Ic Pay Recharge In: Med,Div Of Women & Clin Support,Imperial College London,3708040,"83,726.86",Optional requirement only
Department of Health,Imperial College Healthcare NHS Trust,01/02/2018,Jac - Stock,Stock,Csl Behring Uk Ltd,3700700,"107,900.00",Optional requirement only
Department of Health,Imperial College Healthcare NHS Trust,01/02/2018,Jac - Stock,Stock,Healthcare At Home Ltd,3708736,"45,360.00",Optional requirement only
Department of Health,Imperial College Healthcare NHS Trust,01/02/2018,Jac - Stock,Stock,Qualasept Ltd,3707422,"68,467.20",Optional requirement only
Department of Health,Imperial College Healthcare NHS Trust,01/02/2018,Med & Prof Fees (Imaging Cons),Ichnt Balance Sheet,Lindo Wing Radiology Llp,3707712,"136,594.00",Optional requirement only
Department of Health,Imperial College Healthcare NHS Trust,01/02/2018,Srvcsrecd-Other Nhs,Pathology,Micropathology Ltd,3707173,"28,275.12",Optional requirement only
Department of Health,Imperial College Healthcare NHS Trust,05/02/2018,Ext Contr Logistics,Finance Directorate,Eleanor Hospital Logistics Ltd,3711672,"163,311.42",Optional requirement only
Department of Health,Imperial College Healthcare NHS Trust,06/02/2018,Acton Housing Association,Housing Deductions,A2dominion Housing Group Ltd,3712067,"190,150.92",Optional requirement only
Department of Health,Imperial College Healthcare NHS Trust,06/02/2018,Agency Nursing: Qualified,Div Of Med & Integrated Care,Reed,3711829,"103,556.53",Optional requirement only
Department of Health,Imperial College Healthcare NHS Trust,06/02/2018,Agency Nursing: Qualified,"Div Of Surg, Cardiov & Cancer",Reed,3711829,"74,710.07",Optional requirement only
Department of Health,Imperial College Healthcare NHS Trust,06/02/2018,Agency Nursing: Qualified,Div Of Women & Clin Support,Reed,3711829,"41,206.39",Optional requirement only
Department of Health,Imperial College Healthcare NHS Trust,06/02/2018,Agency Scient & Prof Qualified,"Div Of Surg, Cardiov & Cancer",Reed,3710561,"38,176.59",Optional requirement only
Department of Health,Imperial College Healthcare NHS Trust,06/02/2018,Agency Scient & Prof Qualified,Pathology,Reed,5001,"45,681.55",Optional requirement only
Department of Health,Imperial College Healthcare NHS Trust,06/02/2018,Bldg/Eng Equip Maint/Rep,Nursing Directorate,Cbre Managed Services Ltd,3712069,"228,366.80",Optional requirement only
Department of Health,Imperial College Healthcare NHS Trust,06/02/2018,Buildings-Additions-Purchased,Capital Summary,Cbre Managed Services Ltd,3712069,"979,704.82",Optional requirement only
Department of Health,Imperial College Healthcare NHS Trust,06/02/2018,Car Salary Sacrifice,Ichnt Balance Sheet,Tuskerdirect Ltd,4984,"50,328.90",Optional requirement only
Department of Health,Imperial College Healthcare NHS Trust,06/02/2018,Dialysers,Div Of Med & Integrated Care,Baxter Healthcare Ltd,3712027,"26,051.12",Optional requirement only
Department of Health,Imperial College Healthcare NHS Trust,06/02/2018,Dialysers,Div Of Med & Integrated Care,Baxter Healthcare Ltd,3712033,"26,264.98",Optional requirement only
Department of Health,Imperial College Healthcare NHS Trust,06/02/2018,Jac - Stock,Stock,Roche Products Ltd,3699642,"30,799.44",Optional requirement only
Department of Health,Imperial College Healthcare NHS Trust,06/02/2018,Med & Surg Equip Repair,Nursing Directorate,Ge Medical Systems Limited,3711055,"696,830.40",Optional requirement only
Department of Health,Imperial College Healthcare NHS Trust,06/02/2018,Med & Surg Equip Repair,Nursing Directorate,Ge Medical Systems Limited,3711056,"720,062.40",Optional requirement only
Department of Health,Imperial College Healthcare NHS Trust,06/02/2018,Med & Surg Equip Repair,Nursing Directorate,Ge Medical Systems Limited,3711057,"720,058.80",Optional requirement only
Department of Health,Imperial College Healthcare NHS Trust,06/02/2018,Med & Surg Equip Repair,Nursing Directorate,Ge Medical Systems Limited,3711058,"696,303.60",Optional requirement only
Department of Health,Imperial College Healthcare NHS Trust,06/02/2018,Med & Surg Equip Repair,Nursing Directorate,Ge Medical Systems Limited,3711120,"719,514.00",Optional requirement only
Department of Health,Imperial College Healthcare NHS Trust,06/02/2018,Services Received - Nhsts,Div Of Med & Integrated Care,West London Mental Health Nhs Trust,3712023,"49,054.00",Optional requirement only
Department of Health,Imperial College Healthcare NHS Trust,06/02/2018,Srvcsrecd-Foundationtrust,Pathology,Chelsea And  Westminster Hospital Nhs Ft,3710298,"41,865.42",Optional requirement only
Department of Health,Imperial College Healthcare NHS Trust,06/02/2018,Stents,"Div Of Surg, Cardiov & Cancer",Cook Uk Ltd,3710268,"36,000.00",Optional requirement only
Department of Health,Imperial College Healthcare NHS Trust,06/02/2018,Thames Valley Housing Assoc,Housing Deductions,Thames Valley Charitable Housing,3712068,"110,205.25",Optional requirement only
Department of Health,Imperial College Healthcare NHS Trust,08/02/2018,Agency Nursing: Qualified,Div Of Med & Integrated Care,Reed,3713423,"104,471.97",Optional requirement only
Department of Health,Imperial College Healthcare NHS Trust,08/02/2018,Agency Nursing: Qualified,"Div Of Surg, Cardiov & Cancer",Reed,3713423,"86,840.18",Optional requirement only
Department of Health,Imperial College Healthcare NHS Trust,08/02/2018,Agency Nursing: Qualified,Div Of Women & Clin Support,Reed,3713423,"41,223.03",Optional requirement only
Department of Health,Imperial College Healthcare NHS Trust,08/02/2018,Agency Scient & Prof Qualified,Pathology,Reed,5106,"46,553.37",Optional requirement only
Department of Health,Imperial College Healthcare NHS Trust,08/02/2018,Home Electronics Cr,Ichnt Balance Sheet,Northumbria Healthcare Nhs Foundation Trust,3707790,"32,993.99",Optional requirement only
Department of Health,Imperial College Healthcare NHS Trust,08/02/2018,Jac - Stock,Stock,Aah Pharmaceuticals Limited,3710425,"37,872.00",Optional requirement only
Department of Health,Imperial College Healthcare NHS Trust,08/02/2018,Jac - Stock,Stock,Alloga Uk Ltd,3710869,"52,677.60",Optional requirement only
Department of Health,Imperial College Healthcare NHS Trust,08/02/2018,Jac - Stock,Stock,Qualasept Ltd,3711704,"484,302.17",Optional requirement only
Department of Health,Imperial College Healthcare NHS Trust,08/02/2018,Jac - Stock,Stock,Roche Products Ltd,3700760,"122,145.00",Optional requirement only
Department of Health,Imperial College Healthcare NHS Trust,13/02/2018,Agency Nursing: Qualified,Div Of Med & Integrated Care,Reed,3716292,"113,111.01",Optional requirement only
Department of Health,Imperial College Healthcare NHS Trust,13/02/2018,Agency Nursing: Qualified,"Div Of Surg, Cardiov & Cancer",Reed,3716292,"78,953.09",Optional requirement only
Department of Health,Imperial College Healthcare NHS Trust,13/02/2018,Agency Nursing: Qualified,Div Of Women & Clin Support,Reed,3716292,"45,986.97",Optional requirement only
Department of Health,Imperial College Healthcare NHS Trust,13/02/2018,Agency Scient & Prof Qualified,"Div Of Surg, Cardiov & Cancer",Reed,3714135,"36,834.19",Optional requirement only
Department of Health,Imperial College Healthcare NHS Trust,13/02/2018,Agency Scient & Prof Qualified,Div Of Women & Clin Support,Reed,3714135,"43,236.84",Optional requirement only
Department of Health,Imperial College Healthcare NHS Trust,13/02/2018,Agency Scient & Prof Qualified,Pathology,Reed,5122,"47,273.85",Optional requirement only
Department of Health,Imperial College Healthcare NHS Trust,13/02/2018,Cx-Hh Consultant Load,Ichnt Balance Sheet,Dr Andrew Wright,3714320,"86,355.00",Optional requirement only
Department of Health,Imperial College Healthcare NHS Trust,13/02/2018,Cx-Hh Consultant Load,Ichnt Balance Sheet,Mr Long R Jiao,3714335,"25,178.00",Optional requirement only
Department of Health,Imperial College Healthcare NHS Trust,13/02/2018,Gas,Nursing Directorate,E.On  Energy Gas Income Account,3708038,"39,213.83",Optional requirement only
Department of Health,Imperial College Healthcare NHS Trust,13/02/2018,Home Electronics Cr,Ichnt Balance Sheet,Northumbria Healthcare Nhs Foundation Trust,3707791,"55,239.25",Optional requirement only
Department of Health,Imperial College Healthcare NHS Trust,13/02/2018,Home Electronics Cr,Ichnt Balance Sheet,Northumbria Healthcare Nhs Foundation Trust,3707793,"55,192.86",Optional requirement only
Department of Health,Imperial College Healthcare NHS Trust,13/02/2018,Home Electronics Cr,Ichnt Balance Sheet,Northumbria Healthcare Nhs Foundation Trust,3707794,"46,982.86",Optional requirement only
Department of Health,Imperial College Healthcare NHS Trust,13/02/2018,Jac - Stock,Stock,Aah Pharmaceuticals Limited,3713450,"37,954.80",Optional requirement only
Department of Health,Imperial College Healthcare NHS Trust,13/02/2018,Jac - Stock,Stock,Bayer Plc,3713602,"125,856.00",Optional requirement only
Department of Health,Imperial College Healthcare NHS Trust,13/02/2018,Jac - Stock,Stock,Bayer Plc,3713604,"104,880.00",Optional requirement only
Department of Health,Imperial College Healthcare NHS Trust,13/02/2018,Jac - Stock,Stock,Bayer Plc,3713607,"31,464.00",Optional requirement only
Department of Health,Imperial College Healthcare NHS Trust,13/02/2018,Jac - Stock,Stock,Novartis Pharmaceutical (Uk) Ltd,3713618,"40,068.00",Optional requirement only
Department of Health,Imperial College Healthcare NHS Trust,13/02/2018,Jac - Stock,Stock,Novartis Pharmaceutical (Uk) Ltd,3713619,"39,533.76",Optional requirement only
Department of Health,Imperial College Healthcare NHS Trust,13/02/2018,Jac - Stock,Stock,Novartis Pharmaceutical (Uk) Ltd,3713620,"38,465.28",Optional requirement only
Department of Health,Imperial College Healthcare NHS Trust,13/02/2018,Med & Prof Fees (Imaging Cons),Ichnt Balance Sheet,Lindo Wing Radiology Llp,3714375,"144,941.00",Optional requirement only
Department of Health,Imperial College Healthcare NHS Trust,13/02/2018,Med & Surg Maint Contract,"Div Of Surg, Cardiov & Cancer",Varian Medical Systems Uk Ltd,3713965,"194,805.60",Optional requirement only
Department of Health,Imperial College Healthcare NHS Trust,15/02/2018,Buildings-Additions-Purchased,Capital Summary,M&J Group (Construction & Roofin) Ltd [Cs],3718302,"29,390.59",Optional requirement only
Department of Health,Imperial College Healthcare NHS Trust,15/02/2018,Clinical Managed Service Contr,Pathology,Genmed.Me Ltd,3718274,"153,935.96",Optional requirement only
Department of Health,Imperial College Healthcare NHS Trust,15/02/2018,Clinical Managed Service Contr,Pathology,Genmed.Me Ltd,3718275,"699,000.00",Optional requirement only
Department of Health,Imperial College Healthcare NHS Trust,15/02/2018,Ext Contract - Patient Travel,Nursing Directorate,Dhl Supply Chain  (Former Excel),3710299,"42,928.18",Optional requirement only
Department of Health,Imperial College Healthcare NHS Trust,15/02/2018,It Eqpt-Additions,Capital Summary,Phoenix Software Ltd,3718288,"525,515.83",Optional requirement only
Department of Health,Imperial College Healthcare NHS Trust,15/02/2018,Jac - Stock,Stock,Aah Pharmaceuticals Limited,3715275,"37,872.00",Optional requirement only
Department of Health,Imperial College Healthcare NHS Trust,15/02/2018,Jac - Stock,Stock,Alloga Uk Ltd,3711677,"77,406.00",Optional requirement only
Department of Health,Imperial College Healthcare NHS Trust,15/02/2018,Jac - Stock,Stock,Genzyme Therapeutics Ltd,3715671,"169,080.00",Optional requirement only
Department of Health,Imperial College Healthcare NHS Trust,15/02/2018,Jac - Stock,Stock,Novartis Pharmaceutical (Uk) Ltd,3713688,"44,341.92",Optional requirement only
Department of Health,Imperial College Healthcare NHS Trust,15/02/2018,Jac - Stock,Stock,Qualasept Ltd,3715756,"68,467.20",Optional requirement only
Department of Health,Imperial College Healthcare NHS Trust,15/02/2018,Other Research Exp - Non-Pay,Rd Medical Directorate,Imperial College London,3717871,"1,103,986.00",Optional requirement only
Department of Health,Imperial College Healthcare NHS Trust,15/02/2018,Other Research Exp - Non-Pay,Rd Medical Directorate,Imperial College London,3717872,"1,103,986.00",Optional requirement only
Department of Health,Imperial College Healthcare NHS Trust,15/02/2018,Purch Hcare Independent Sector,"Div Of Surg, Cardiov & Cancer",Parkside Hospital,3718309,"25,580.04",Optional requirement only
Department of Health,Imperial College Healthcare NHS Trust,15/02/2018,Rent,Div Of Med & Integrated Care,Nhs Property Services Ltd,3717220,"33,272.00",Optional requirement only
Department of Health,Imperial College Healthcare NHS Trust,15/02/2018,Taxi & Other Vehicle Hire,Nursing Directorate,Dhl Supply Chain  (Former Excel),3710303,"85,789.60",Optional requirement only
Department of Health,Imperial College Healthcare NHS Trust,20/02/2018,Agency Scient & Prof Qualified,Div Of Women & Clin Support,Reed,3720389,"31,937.04",Optional requirement only
Department of Health,Imperial College Healthcare NHS Trust,20/02/2018,Clinical Managed Service Contr,"Div Of Surg, Cardiov & Cancer",Medtronic Ltd,3720350,"1,232,066.18",Optional requirement only
Department of Health,Imperial College Healthcare NHS Trust,20/02/2018,Consultancy Fees,Finance Directorate,Pricewaterhousecoopers Llp,3720205,"44,395.20",Optional requirement only
Department of Health,Imperial College Healthcare NHS Trust,20/02/2018,Dist Award - Local Cea,Div Of Med & Integrated Care,Imperial College London,3720372,"38,747.44",Optional requirement only
Department of Health,Imperial College Healthcare NHS Trust,20/02/2018,Dist Award - Nat Cea,Div Of Med & Integrated Care,Imperial College London,3720372,"82,749.91",Optional requirement only
Department of Health,Imperial College Healthcare NHS Trust,20/02/2018,Dist Award - Nat Cea,"Div Of Surg, Cardiov & Cancer",Imperial College London,3720372,"74,653.14",Optional requirement only
Department of Health,Imperial College Healthcare NHS Trust,20/02/2018,Dist Award - Nat Cea,Div Of Women & Clin Support,Imperial College London,3720372,"44,434.44",Optional requirement only
Department of Health,Imperial College Healthcare NHS Trust,20/02/2018,Dist Award - Nat Cea,Medical Director Summary,Imperial College London,3720372,"28,498.20",Optional requirement only
Department of Health,Imperial College Healthcare NHS Trust,20/02/2018,Drugs Nhs,Div Of Women & Clin Support,Lloyds Retail Chemists Ltd,3720368,"3,270,085.16",Optional requirement only
Department of Health,Imperial College Healthcare NHS Trust,20/02/2018,Drugs Nhs,Div Of Women & Clin Support,Lloyds Retail Chemists Ltd,3720378,"3,802,059.78",Optional requirement only
Department of Health,Imperial College Healthcare NHS Trust,20/02/2018,Electricity,Nursing Directorate,Edf Energy Customer Plc,3713425,"255,137.47",Optional requirement only
Department of Health,Imperial College Healthcare NHS Trust,20/02/2018,Electricity,Nursing Directorate,Edf Energy Customer Plc,3713427,"36,371.35",Optional requirement only
Department of Health,Imperial College Healthcare NHS Trust,20/02/2018,Electricity,Nursing Directorate,Edf Energy Customer Plc,3713429,"243,756.13",Optional requirement only
Department of Health,Imperial College Healthcare NHS Trust,20/02/2018,Electricity,Nursing Directorate,Edf Energy Customer Plc,3713437,"84,641.51",Optional requirement only
Department of Health,Imperial College Healthcare NHS Trust,20/02/2018,Ic Library Expenditure,Medical Director Summary,Imperial College London,3720357,"95,353.50",Optional requirement only
Department of Health,Imperial College Healthcare NHS Trust,20/02/2018,Ic Pay Recharge In: Med,Div Of Med & Integrated Care,Imperial College London,3720372,"183,203.40",Optional requirement only
Department of Health,Imperial College Healthcare NHS Trust,20/02/2018,Ic Pay Recharge In: Med,"Div Of Surg, Cardiov & Cancer",Imperial College London,3720372,"316,379.06",Optional requirement only
Department of Health,Imperial College Healthcare NHS Trust,20/02/2018,Ic Pay Recharge In: Med,"Div Of Surg, Cardiov & Cancer",Imperial College London,3720385,"41,162.85",Optional requirement only
Department of Health,Imperial College Healthcare NHS Trust,20/02/2018,Ic Pay Recharge In: Med,Div Of Women & Clin Support,Imperial College London,3720372,"95,320.15",Optional requirement only
Department of Health,Imperial College Healthcare NHS Trust,20/02/2018,Income Tax Paye,Ichnt Balance Sheet,Hmrc Government Employers Account,3720608,"14,321,190.13",Optional requirement only
Department of Health,Imperial College Healthcare NHS Trust,20/02/2018,Isotopes,Div Of Women & Clin Support,Mallinckrodt Rp Uk Ltd,3720354,"31,107.60",Optional requirement only
Department of Health,Imperial College Healthcare NHS Trust,20/02/2018,Jac - Stock,Stock,Alloga Uk Ltd,3713743,"33,289.20",Optional requirement only
Department of Health,Imperial College Healthcare NHS Trust,20/02/2018,Jac - Stock,Stock,Alloga Uk Ltd,3713744,"55,212.00",Optional requirement only
Department of Health,Imperial College Healthcare NHS Trust,20/02/2018,Jac - Stock,Stock,Csl Behring Uk Ltd,3715761,"40,300.00",Optional requirement only
Department of Health,Imperial College Healthcare NHS Trust,20/02/2018,Laboratory Chemicals/ Reagents,Pathology,Diamed Gb Ltd,3720465,"196,411.51",Optional requirement only
Department of Health,Imperial College Healthcare NHS Trust,20/02/2018,Med & Surg Equip General,Div Of Med & Integrated Care,Medtronic Ltd,3720391,"53,358.00",Optional requirement only
Department of Health,Imperial College Healthcare NHS Trust,20/02/2018,Med & Surg Equip General,"Div Of Surg, Cardiov & Cancer",Medtronic Ltd,3720350,"43,762.46",Optional requirement only
Department of Health,Imperial College Healthcare NHS Trust,20/02/2018,Med & Surg Equip General,Div Of Women & Clin Support,Alliance Medical Ltd,3720365,"76,545.00",Optional requirement only
Department of Health,Imperial College Healthcare NHS Trust,20/02/2018,Other Research Exp - Pay,Rdwomen And Children Division,Imperial College London,3720360,"26,905.52",Optional requirement only
Department of Health,Imperial College Healthcare NHS Trust,20/02/2018,P & M-Additions-Purchased,Capital Summary,Jackson Lift Services Limited,3719422,"54,000.00",Optional requirement only
Department of Health,Imperial College Healthcare NHS Trust,20/02/2018,P & M-Additions-Purchased,Capital Summary,Jackson Lift Services Limited,3719423,"72,000.00",Optional requirement only
Department of Health,Imperial College Healthcare NHS Trust,20/02/2018,P & M-Additions-Purchased,Capital Summary,Jackson Lift Services Limited,3719424,"108,000.00",Optional requirement only
Department of Health,Imperial College Healthcare NHS Trust,20/02/2018,P & M-Additions-Purchased,Capital Summary,Jackson Lift Services Limited,3719425,"108,000.00",Optional requirement only
Department of Health,Imperial College Healthcare NHS Trust,20/02/2018,P & M-Additions-Purchased,Capital Summary,Jackson Lift Services Limited,3719427,"72,000.00",Optional requirement only
Department of Health,Imperial College Healthcare NHS Trust,20/02/2018,P & M-Additions-Purchased,Capital Summary,Jackson Lift Services Limited,3719434,"108,000.00",Optional requirement only
Department of Health,Imperial College Healthcare NHS Trust,20/02/2018,P & M-Additions-Purchased,Capital Summary,Jackson Lift Services Limited,3719464,"72,000.00",Optional requirement only
Department of Health,Imperial College Healthcare NHS Trust,20/02/2018,Rent,Div Of Med & Integrated Care,London North West Healthcare Nhs Trust,3720349,"168,943.96",Optional requirement only
Department of Health,Imperial College Healthcare NHS Trust,20/02/2018,Rent,Div Of Med & Integrated Care,Nhs Property Services Ltd,3719237,"78,000.00",Optional requirement only
Department of Health,Imperial College Healthcare NHS Trust,20/02/2018,Rent,Div Of Med & Integrated Care,Nhs Property Services Ltd,3720363,"85,247.00",Optional requirement only
Department of Health,Imperial College Healthcare NHS Trust,20/02/2018,Season Ticket Cr Abellio,Ichnt Balance Sheet,Abellio Transport Holdings Ltd,3720425,"38,797.92",Optional requirement only
Department of Health,Imperial College Healthcare NHS Trust,20/02/2018,Season Ticket Cr Abellio,Ichnt Balance Sheet,Abellio Transport Holdings Ltd,3720428,"26,409.45",Optional requirement only
Department of Health,Imperial College Healthcare NHS Trust,20/02/2018,Season Ticket Cr Abellio,Ichnt Balance Sheet,Abellio Transport Holdings Ltd,3720432,"49,108.80",Optional requirement only
Department of Health,Imperial College Healthcare NHS Trust,22/02/2018,Agency Admin & Clerical,Finance Directorate,Reed,3721188,"37,349.56",Optional requirement only
Department of Health,Imperial College Healthcare NHS Trust,22/02/2018,Agency Nursing: Qualified,Div Of Med & Integrated Care,Reed,3721188,"87,716.82",Optional requirement only
Department of Health,Imperial College Healthcare NHS Trust,22/02/2018,Agency Nursing: Qualified,"Div Of Surg, Cardiov & Cancer",Reed,3721188,"74,995.95",Optional requirement only
Department of Health,Imperial College Healthcare NHS Trust,22/02/2018,Agency Nursing: Qualified,Div Of Women & Clin Support,Reed,3721188,"64,811.25",Optional requirement only
Department of Health,Imperial College Healthcare NHS Trust,22/02/2018,Agency Scient & Prof Qualified,"Div Of Surg, Cardiov & Cancer",Reed,3721187,"54,772.38",Optional requirement only
Department of Health,Imperial College Healthcare NHS Trust,22/02/2018,Agency Scient & Prof Qualified,Div Of Women & Clin Support,Reed,3721187,"35,077.92",Optional requirement only
Department of Health,Imperial College Healthcare NHS Trust,22/02/2018,Agency Scient & Prof Qualified,Pathology,Reed,5154,"44,718.92",Optional requirement only
Department of Health,Imperial College Healthcare NHS Trust,22/02/2018,Audit Fees: External,Finance Directorate,Deloitte And Touche Llp,3722302,"37,500.00",Optional requirement only
Department of Health,Imperial College Healthcare NHS Trust,22/02/2018,Bldg/Eng Equip Maint/Rep,Nursing Directorate,Cbre Managed Services Ltd,3712026,"92,026.49",Optional requirement only
Department of Health,Imperial College Healthcare NHS Trust,22/02/2018,Blood Products,Pathology,Nhs Blood And Transplant,3723081,"65,145.83",Optional requirement only
Department of Health,Imperial College Healthcare NHS Trust,22/02/2018,Buildings-Additions-Purchased,Capital Summary,Cbre Managed Services Ltd,3711946,"76,289.50",Optional requirement only
Department of Health,Imperial College Healthcare NHS Trust,22/02/2018,Buildings-Additions-Purchased,Capital Summary,Cbre Managed Services Ltd,3712026,"494,465.37",Optional requirement only
Department of Health,Imperial College Healthcare NHS Trust,22/02/2018,Buildings-Additions-Purchased,Capital Summary,Conduct Services Ltd,3722937,"96,000.00",Optional requirement only
Department of Health,Imperial College Healthcare NHS Trust,22/02/2018,Buildings-Additions-Purchased,Capital Summary,Lowe Build Ltd,3723074,"37,332.76",Optional requirement only
Department of Health,Imperial College Healthcare NHS Trust,22/02/2018,Childcare Voucher (Kids Unltd),Childcare Vouchers,Sodexo Motivation Solutions Uk Ltd,3720710,"69,641.71",Optional requirement only
Department of Health,Imperial College Healthcare NHS Trust,22/02/2018,Consultancy Fees,Finance Directorate,Pricewaterhousecoopers Llp,3720873,"59,940.00",Optional requirement only
Department of Health,Imperial College Healthcare NHS Trust,22/02/2018,Dialysers,Div Of Med & Integrated Care,Baxter Healthcare Ltd,3721170,"121,949.10",Optional requirement only
Department of Health,Imperial College Healthcare NHS Trust,22/02/2018,Dialysers,Div Of Med & Integrated Care,Baxter Healthcare Ltd,3721176,"119,854.89",Optional requirement only
Department of Health,Imperial College Healthcare NHS Trust,22/02/2018,Drugs Pbr Excluded,"Div Of Surg, Cardiov & Cancer",Healthcare At Home Ltd,3722028,"107,880.00",Optional requirement only
Department of Health,Imperial College Healthcare NHS Trust,22/02/2018,Equip Maint Contracts,Pathology,Leica Microsystems (Uk) Ltd,3722975,"86,910.35",Optional requirement only
Department of Health,Imperial College Healthcare NHS Trust,22/02/2018,Ext Contr Catering,Nursing Directorate,Sodexo Limited,3718304,"2,276,448.24",Optional requirement only
Department of Health,Imperial College Healthcare NHS Trust,22/02/2018,It Eqpt-Additions,Capital Summary,Insight Direct (Uk) Ltd,3722308,"124,801.06",Optional requirement only
Department of Health,Imperial College Healthcare NHS Trust,22/02/2018,Jac - Stock,Stock,Csl Behring Uk Ltd,3715767,"40,300.00",Optional requirement only
Department of Health,Imperial College Healthcare NHS Trust,22/02/2018,Laboratory Chemicals/ Reagents,Pathology,Diamed Gb Ltd,3721183,"196,411.51",Optional requirement only
Department of Health,Imperial College Healthcare NHS Trust,22/02/2018,Laboratory Chemicals/ Reagents,Pathology,Diamed Gb Ltd,3723083,"194,521.52",Optional requirement only
Department of Health,Imperial College Healthcare NHS Trust,22/02/2018,Lease Rents,Div Of Med & Integrated Care,Nhs Property Services Ltd,3720602,"66,877.77",Optional requirement only
Department of Health,Imperial College Healthcare NHS Trust,22/02/2018,Lease Rents,"Div Of Surg, Cardiov & Cancer",Hanwell Health Centre,3722945,"36,115.64",Optional requirement only
Department of Health,Imperial College Healthcare NHS Trust,22/02/2018,Lease Rents,Nursing Directorate,London Borough Of Hammersmith/Fulham,3722918,"100,371.10",Optional requirement only
Department of Health,Imperial College Healthcare NHS Trust,22/02/2018,Purch Hcare Independent Sector,Div Of Med & Integrated Care,London Central & West Unscheduled Care Collab,3722925,"452,524.25",Optional requirement only
Department of Health,Imperial College Healthcare NHS Trust,26/02/2018,Blood Products,Pathology,Nhs Blood And Transplant,3723451,"169,495.67",Optional requirement only
Department of Health,Imperial College Healthcare NHS Trust,26/02/2018,Blood Products,Pathology,Nhs Blood And Transplant,3723456,"65,145.83",Optional requirement only
Department of Health,Imperial College Healthcare NHS Trust,26/02/2018,Computer Maintenance,Information & Comms Technology,Infratech Hardware Limited,3722931,"33,343.56",Optional requirement only
Department of Health,Imperial College Healthcare NHS Trust,26/02/2018,It Eqpt-Additions,Capital Summary,Infratech Hardware Limited,3722920,"41,468.14",Optional requirement only
Department of Health,Imperial College Healthcare NHS Trust,26/02/2018,Jac - Stock,Stock,Aah Pharmaceuticals Limited,3719526,"66,357.14",Optional requirement only
Department of Health,Imperial College Healthcare NHS Trust,26/02/2018,Jac - Stock,Stock,Novartis Pharmaceutical (Uk) Ltd,3713617,"37,396.80",Optional requirement only
Department of Health,Imperial College Healthcare NHS Trust,26/02/2018,Purch Hcare Independent Sector,"Div Of Surg, Cardiov & Cancer",Bmi Healthcare Ltd,3723461,"26,842.17",Optional requirement only
Department of Health,Imperial College Healthcare NHS Trust,26/02/2018,Purch Hcare Independent Sector,"Div Of Surg, Cardiov & Cancer",Bmi Healthcare Ltd,3723464,"41,787.76",Optional requirement only
Department of Health,Imperial College Healthcare NHS Trust,26/02/2018,Purch Hcare Independent Sector,"Div Of Surg, Cardiov & Cancer",Bmi Healthcare Ltd,3723467,"42,516.68",Optional requirement only
Department of Health,Imperial College Healthcare NHS Trust,26/02/2018,Purch Hcare Independent Sector,"Div Of Surg, Cardiov & Cancer",Bmi Healthcare Ltd,3723468,"44,622.65",Optional requirement only
Department of Health,Imperial College Healthcare NHS Trust,26/02/2018,Purch Hcare Independent Sector,"Div Of Surg, Cardiov & Cancer",Bmi Healthcare Ltd,3723469,"48,049.82",Optional requirement only
Department of Health,Imperial College Healthcare NHS Trust,26/02/2018,Purch Hcare Independent Sector,"Div Of Surg, Cardiov & Cancer",Bmi Healthcare Ltd,3723470,"28,351.95",Optional requirement only
Department of Health,Imperial College Healthcare NHS Trust,26/02/2018,Purch Hcare Independent Sector,"Div Of Surg, Cardiov & Cancer",Bmi Healthcare Ltd,3723471,"31,639.17",Optional requirement only
Department of Health,Imperial College Healthcare NHS Trust,26/02/2018,Purch Hcare Independent Sector,"Div Of Surg, Cardiov & Cancer",Bmi Healthcare Ltd,3723472,"28,034.43",Optional requirement only
Department of Health,Imperial College Healthcare NHS Trust,26/02/2018,Rent,"Div Of Surg, Cardiov & Cancer",London North West Healthcare Nhs Trust,3723449,"51,927.83",Optional requirement only
,,,,,,Sum:,"46,611,091.24",
